bitfinex/quotes_SOLUSD_20250818
["timestamp","ask_amount","ask_price","bid_price","bid_amount"]
[1755481781776,40.88,187.84,187.8,13.61725873]
[1755481782147,46.20367972,187.84,187.8,13.61725873]
[1755481782549,46.20367972,187.84,187.81,13.61725873]
[1755481783277,60.52093845,187.84,187.78,13.61725873]
[1755481783459,60.52093845,187.84,187.77,0.03]
[1755481783460,60.52093845,187.84,187.79,0.03]
[1755481784077,46.20367972,187.84,187.8,13.61725873]
[1755481784268,60.52093845,187.84,187.79,0.03]
[1755481784581,60.52093845,187.84,187.79,13.64725873]
[1755481785178,60.52093845,187.84,187.79,0.03]
[1755481785489,46.20367972,187.84,187.8,13.61725873]
[1755481785660,60.51093845,187.84,187.79,0.03]
[1755481785860,46.89367972,187.84,187.79,0.03]
[1755481786063,60.51093845,187.84,187.79,0.03]
[1755481786374,46.20367972,187.84,187.79,13.64725873]
[1755481786544,40.88,187.84,187.8,13.61725873]
[1755481786750,40.88,187.84,187.83,13.64725873]
[1755481787185,40.88,187.84,187.83,0.03]
[1755481787887,40.88,187.84,187.83,13.64725873]
[1755481788655,40.88,187.84,187.83,0.03]
[1755481788867,46.20367972,187.84,187.83,0.03]
[1755481789073,60.51093845,187.84,187.83,0.03]
[1755481789349,46.20367972,187.84,187.83,0.03]
[1755481789552,46.18367972,187.84,187.83,0.03]
[1755481792299,46.87367972,187.84,187.83,0.03]
[1755481792475,60.49093845,187.84,187.83,0.03]
[1755481798674,60.49093845,187.84,187.81,0.03]
[1755481798675,15.10621557,187.83,187.81,0.03]
[1755481798875,31.32481363,187.8,187.79,0.03]
[1755481799179,85.74207236,187.8,187.79,0.03]
[1755481799492,86.43207236,187.8,187.79,0.03]
[1755481800585,72.81481363,187.8,187.79,0.03]
[1755481800796,72.12481363,187.8,187.79,0.03]
[1755481800962,46.12481363,187.8,187.79,0.03]
[1755481801391,5.32373096,187.84,187.79,13.64725873]
[1755481801562,5.32373096,187.84,187.8,13.61725873]
[1755481801563,40.8,187.83,187.8,13.61725873]
[1755481802336,40.8,187.83,187.81,13.61725873]
[1755481802482,40.8,187.83,187.82,13.61725873]
[1755481802806,13.67725873,187.88,187.79,0.03]
[1755481802807,0.06,187.88,187.79,0.03]
[1755481802982,40.8,187.87,187.83,13.61725873]
[1755481803379,13.61725873,187.85,187.79,13.64725873]
[1755481803686,13.61725873,187.81,187.79,0.03]
[1755481803902,40.8,187.8,187.79,13.64725873]
[1755481804101,40.8,187.81,187.79,0.03]
[1755481804315,26.0,187.82,187.79,0.03]
[1755481804316,40.8,187.8,187.79,0.03]
[1755481804896,46.12481363,187.8,187.79,0.03]
[1755481805120,0.69,187.83,187.79,0.03]
[1755481805121,40.8,187.81,187.79,0.03]
[1755481805303,40.78,187.81,187.8,13.61725873]
[1755481806102,5.32344425,187.85,187.8,13.61725873]
[1755481806301,40.84,187.86,187.81,13.61725873]
[1755481806512,40.84,187.86,187.8,13.61725873]
[1755481806513,0.69,187.85,187.8,13.61725873]
[1755481806692,40.78,187.84,187.8,13.61725873]
[1755481807026,46.10396259,187.84,187.79,0.03]
[1755481807218,46.10396259,187.84,187.8,13.61725873]
[1755481807399,0.06,187.86,187.83,13.61725873]
[1755481807603,0.06,187.86,187.85,13.61725873]
[1755481808639,0.06,187.86,187.85,15.10621557]
[1755481808795,0.06,187.88,187.85,29.25581393]
[1755481809129,0.06,187.88,187.87,28.7234743]
[1755481812308,0.06,187.88,187.87,13.61725873]
[1755481813906,0.75,187.88,187.85,13.61725873]
[1755481814224,0.69,187.87,187.83,13.61725873]
[1755481814416,5.38262406,187.88,187.85,13.61725873]
[1755481814599,6.07262406,187.88,187.85,13.61725873]
[1755481815233,0.06,187.88,187.85,13.61725873]
[1755481815432,14.31725873,187.87,187.79,0.03]
[1755481815603,0.7,187.87,187.82,13.61725873]
[1755481815800,41.44,187.87,187.82,13.61725873]
[1755481816001,0.7,187.86,187.82,13.61725873]
[1755481817410,6.02318161,187.86,187.82,13.61725873]
[1755481817910,40.74,187.87,187.85,13.61725873]
[1755481818114,40.74,187.87,187.79,20.46119464]
[1755481818115,46.76295294,187.87,187.83,13.61725873]
[1755481818331,46.76295294,187.87,187.79,5.35497907]
[1755481818332,0.7,187.86,187.82,13.61725873]
[1755481818522,0.7,187.86,187.79,15.13621557]
[1755481818867,0.7,187.86,187.82,13.61725873]
[1755481819144,0.7,187.86,187.83,13.61725873]
[1755481819531,6.02334793,187.86,187.81,13.61725873]
[1755481819719,6.02334793,187.86,187.82,13.61725873]
[1755481820063,6.08334793,187.86,187.83,13.61725873]
[1755481820412,6.08334793,187.86,187.82,13.61725873]
[1755481820617,0.06,187.86,187.83,13.61725873]
[1755481820850,0.76,187.86,187.8,0.03]
[1755481821031,0.06,187.86,187.83,13.61725873]
[1755481821247,5.38314496,187.86,187.83,13.61725873]
[1755481821448,5.38314496,187.86,187.8,0.03]
[1755481821737,5.38314496,187.86,187.83,13.61725873]
[1755481822127,6.08314496,187.86,187.83,13.61725873]
[1755481822646,0.7,187.85,187.81,13.61725873]
[1755481822820,5.38314496,187.86,187.83,13.61725873]
[1755481823166,6.08314496,187.86,187.82,13.61725873]
[1755481823941,0.7,187.85,187.81,13.61725873]
[1755481825829,19.64093845,187.84,187.8,0.03]
[1755481826047,0.7,187.83,187.8,0.03]
[1755481826254,41.38,187.83,187.8,0.03]
[1755481826439,13.61725873,187.81,187.8,0.03]
[1755481826959,14.31725873,187.81,187.8,0.03]
[1755481827465,0.7,187.81,187.8,0.03]
[1755481827636,14.31725873,187.81,187.8,0.03]
[1755481827951,19.64178884,187.81,187.8,0.03]
[1755481828337,34.74800441,187.81,187.8,1e-08]
[1755481828536,34.74800441,187.81,187.79,1e-08]
[1755481828751,39.61725873,187.8,187.79,1e-08]
[1755481828940,40.31725873,187.8,187.78,1e-08]
[1755481829251,54.99725873,187.79,187.78,1e-08]
[1755481830150,60.32235591,187.79,187.78,1e-08]
[1755481834437,19.64235591,187.79,187.78,1e-08]
[1755481834649,60.30235591,187.79,187.78,1e-08]
[1755481834845,5.32476958,187.81,187.78,13.61725874]
[1755481835081,5.32476958,187.81,187.78,1e-08]
[1755481835235,40.66,187.8,187.78,1e-08]
[1755481835714,0.7,187.79,187.78,1e-08]
[1755481835967,14.31725873,187.79,187.78,1e-08]
[1755481836564,40.66,187.8,187.78,1e-08]
[1755481836773,5.32476958,187.81,187.78,1e-08]
[1755481836774,40.64,187.79,187.78,1e-08]
[1755481836973,41.34,187.79,187.78,1e-08]
[1755481837332,41.4,187.79,187.78,1e-08]
[1755481837546,55.01725873,187.79,187.78,1e-08]
[1755481837767,41.4,187.79,187.78,1e-08]
[1755481837968,55.01725873,187.79,187.78,1e-08]
[1755481838275,41.4,187.79,187.78,1e-08]
[1755481838869,55.66477459,187.79,187.78,1e-08]
[1755481841144,46.72509718,187.79,187.78,1e-08]
[1755481841364,55.66477459,187.79,187.78,1e-08]
[1755481842650,46.02509718,187.79,187.78,1e-08]
[1755481843158,40.7,187.79,187.78,1e-08]
[1755481843360,0.06,187.79,187.78,8.93967742]
[1755481844483,0.06,187.79,187.78,1e-08]
[1755481844661,46.70509718,187.79,187.78,1e-08]
[1755481844980,46.70509718,187.79,187.74,9.13967741]
[1755481844981,26.0,187.75,187.73,1e-08]
[1755481845175,26.0,187.77,187.61,855.07217727]
[1755481845176,26.0,187.71,187.61,855.07217727]
[1755481845409,8.93967741,187.67,187.61,864.01185468]
[1755481845558,8.93967741,187.65,187.61,855.07217727]
[1755481845762,8.93967741,187.62,187.61,855.07217727]
[1755481846074,50.20967741,187.62,187.61,855.07217727]
[1755481847198,55.53959959,187.62,187.61,855.07217727]
[1755481848494,60.24989973,187.62,187.61,855.07217727]
[1755481848800,41.27,187.62,187.61,855.07217727]
[1755481848968,40.6,187.62,187.61,855.07217727]
[1755481849766,26.0,187.68,187.61,855.07217727]
[1755481849968,40.6,187.67,187.64,13.64997755]
[1755481850211,54.24997755,187.67,187.61,868.72215482]
[1755481850382,40.6,187.67,187.62,13.64997755]
[1755481850569,45.92852005,187.67,187.61,855.07217727]
[1755481850775,45.92852005,187.67,187.62,13.64997755]
[1755481851206,40.6,187.67,187.61,855.07217727]
[1755481851376,45.92851492,187.67,187.62,13.64997755]
[1755481851580,0.67,187.66,187.61,868.72215482]
[1755481851884,26.0,187.68,187.61,855.07217727]
[1755481851885,40.6,187.65,187.61,855.07217727]
[1755481852088,40.6,187.67,187.64,13.64997755]
[1755481852284,40.6,187.69,187.66,13.64997755]
[1755481852514,40.6,187.69,187.64,13.64997755]
[1755481852674,14.31997755,187.68,187.63,13.64997755]
[1755481852877,14.31997755,187.68,187.61,855.07217727]
[1755481853184,40.6,187.67,187.62,13.64997755]
[1755481853401,40.6,187.67,187.64,13.64997755]
[1755481853721,40.6,187.67,187.62,13.67997755]
[1755481854079,41.27,187.67,187.62,0.03]
[1755481854307,0.67,187.66,187.62,0.03]
[1755481855088,14.31997755,187.65,187.62,0.03]
[1755481855284,13.64997755,187.63,187.62,0.03]
[1755481855695,14.31997755,187.63,187.62,0.03]
[1755481856010,0.67,187.63,187.62,0.03]
[1755481857078,19.64961566,187.63,187.62,0.03]
[1755481858520,5.99963811,187.63,187.62,0.03]
[1755481858817,40.6,187.64,187.62,0.03]
[1755481859710,40.6,187.64,187.62,13.67997755]
[1755481860085,5.99824699,187.68,187.63,13.64997755]
[1755481860288,13.31852564,187.71,187.67,13.64997755]
[1755481860289,0.67,187.71,187.67,13.64997755]
[1755481860587,15.10621557,187.73,187.7,13.64997755]
[1755481860588,40.6,187.73,187.7,13.64997755]
[1755481861018,13.64997755,187.71,187.62,0.03]
[1755481861219,13.64997755,187.66,187.62,0.03]
[1755481861423,40.6,187.66,187.62,13.67997755]
[1755481861724,40.6,187.66,187.63,13.64997755]
[1755481862045,40.6,187.66,187.62,13.67997755]
[1755481862220,13.64997755,187.72,187.65,13.64997755]
[1755481862432,40.58,187.71,187.69,13.64997755]
[1755481862628,40.58,187.71,187.68,13.64997755]
[1755481863218,40.58,187.71,187.67,13.64997755]
[1755481863528,40.58,187.71,187.68,13.64997755]
[1755481863932,40.58,187.71,187.69,13.64997755]
[1755481864147,40.58,187.71,187.68,13.64997755]
[1755481864313,41.25,187.71,187.66,13.64997755]
[1755481864526,5.32793435,187.69,187.64,13.64997755]
[1755481864720,0.67,187.69,187.65,13.64997755]
[1755481864902,40.58,187.71,187.68,13.64997755]
[1755481865217,40.58,187.71,187.69,13.64997755]
[1755481865424,0.67,187.75,187.7,13.64997755]
[1755481865626,0.06,187.77,187.74,13.64997755]
[1755481865832,0.06,187.77,187.76,13.64997755]
[1755481866144,0.06,187.77,187.66,55.68621557]
[1755481866145,0.06,187.77,187.75,13.64997755]
[1755481866346,0.06,187.77,187.71,26.0]
[1755481866547,0.06,187.77,187.72,5.32708288]
[1755481866729,0.06,187.77,187.7,40.58]
[1755481867054,0.06,187.77,187.76,13.64997755]
[1755481868446,0.06,187.77,187.76,20.64212144]
[1755481869018,0.06,187.77,187.76,41.07428502]
[1755481869229,0.06,187.77,187.76,25.96806945]
[1755481870145,0.06,187.77,187.76,20.64212144]
[1755481870348,0.06,187.77,187.75,20.64212144]
[1755481870548,0.67,187.76,187.72,20.64212144]
[1755481870855,0.67,187.75,187.71,20.64212144]
[1755481871148,0.67,187.74,187.71,20.64212144]
[1755481871338,0.67,187.74,187.7,20.64212144]
[1755481871544,0.67,187.73,187.63,5.32939602]
[1755481871732,20.64212144,187.72,187.66,20.64212144]
[1755481871934,21.31212144,187.73,187.63,45.88939602]
[1755481872244,0.67,187.73,187.69,20.64212144]
[1755481873152,21.37212144,187.77,187.71,20.64212144]
[1755481873375,61.87212144,187.76,187.7,20.64212144]
[1755481873658,0.67,187.75,187.7,20.64212144]
[1755481873855,61.20212144,187.76,187.7,20.64212144]
[1755481874059,40.56,187.76,187.71,20.64212144]
[1755481874242,0.67,187.75,187.7,20.64212144]
[1755481874435,0.67,187.74,187.7,20.64212144]
[1755481874758,21.31212144,187.73,187.67,20.64212144]
[1755481875061,40.54,187.74,187.66,26.0]
[1755481875354,41.22,187.74,187.69,20.64212144]
[1755481875550,0.68,187.73,187.68,20.64212144]
[1755481875754,0.68,187.72,187.67,20.64212144]
[1755481875957,20.64212144,187.73,187.67,20.64212144]
[1755481876159,0.68,187.71,187.63,45.88940041]
[1755481876361,0.68,187.71,187.66,20.64212144]
[1755481876545,6.00754958,187.71,187.66,20.64212144]
[1755481876740,0.68,187.7,187.66,20.64212144]
[1755481876961,0.68,187.73,187.69,20.64212144]
[1755481877462,0.68,187.73,187.7,20.64212144]
[1755481877660,0.68,187.73,187.69,20.64212144]
[1755481877832,26.64892398,187.73,187.67,20.64212144]
[1755481878031,0.68,187.72,187.67,20.64212144]
[1755481878345,0.68,187.71,187.68,20.64212144]
[1755481878541,0.68,187.71,187.63,45.88961416]
[1755481878741,25.96893191,187.73,187.68,20.64212144]
[1755481878946,0.68,187.72,187.68,20.64212144]
[1755481879265,0.68,187.71,187.67,20.64212144]
[1755481879440,0.68,187.71,187.63,45.88949494]
[1755481879850,0.68,187.71,187.67,20.64212144]
[1755481880062,0.68,187.71,187.63,45.88949494]
[1755481880063,40.54,187.74,187.7,20.64212144]
[1755481880239,40.54,187.74,187.71,20.64212144]
[1755481880444,0.68,187.73,187.69,20.64212144]
[1755481880667,40.54,187.74,187.7,20.64212144]
[1755481880842,40.54,187.74,187.71,20.64212144]
[1755481881044,40.54,187.74,187.73,20.64212144]
[1755481881261,40.54,187.74,187.71,20.64212144]
[1755481881441,40.54,187.74,187.72,20.64212144]
[1755481881641,40.54,187.74,187.73,20.64212144]
[1755481882859,0.06,187.77,187.73,20.64212144]
[1755481883171,40.6,187.77,187.75,20.64212144]
[1755481884072,40.6,187.77,187.76,20.64212144]
[1755481884254,0.06,187.77,187.76,20.64212144]
[1755481884986,0.06,187.77,187.76,25.96806945]
[1755481885383,0.06,187.77,187.76,20.64212144]
[1755481887272,0.06,187.77,187.76,25.96806945]
[1755481888344,0.06,187.77,187.76,41.07428502]
[1755481888869,0.06,187.77,187.76,41.60687982]
[1755481889246,0.06,187.77,187.76,82.12687982]
[1755481889449,0.06,187.79,187.78,41.10621557]
[1755481889765,0.06,187.79,187.78,61.74833701]
[1755481890488,0.06,187.79,187.78,54.71366105]
[1755481891469,0.06,187.79,187.78,60.03904181]
[1755481892255,0.06,187.79,187.78,44.93282624]
[1755481892966,0.06,187.79,187.75,28.42130098]
[1755481892967,0.74,187.79,187.75,15.10621557]
[1755481893280,0.74,187.79,187.72,13.31744687]
[1755481893281,0.06,187.79,187.78,13.60744548]
[1755481893778,0.74,187.79,187.78,13.60744548]
[1755481894074,0.06,187.79,187.78,13.60744548]
[1755481895368,0.06,187.8,187.78,74.51904181]
[1755481895560,0.06,187.8,187.79,13.60744548]
[1755481897957,0.74,187.8,187.76,40.48]
[1755481898274,0.74,187.8,187.79,13.60744548]
[1755481898474,0.06,187.8,187.79,13.60744548]
[1755481900181,0.06,187.8,187.79,18.93254266]
[1755481900381,0.06,187.8,187.79,59.41254266]
[1755481900883,0.06,187.8,187.79,54.08744548]
[1755481901084,0.06,187.8,187.79,59.41254266]
[1755481902391,0.06,187.8,187.79,74.51875823]
[1755481902756,0.06,187.8,187.79,100.51875823]
[1755481903179,0.06,187.82,187.8,28.71366105]
[1755481903355,0.06,187.86,187.82,15.10621557]
[1755481903556,0.06,187.86,187.84,13.60744548]
[1755481903865,0.06,187.86,187.84,44.9311252]
[1755481904065,0.06,187.86,187.85,15.10621557]
[1755481904261,0.06,187.9,187.85,69.17366105]
[1755481904458,0.06,187.9,187.89,13.60744548]
[1755481904876,0.74,187.9,187.89,54.06744548]
[1755481905080,0.74,187.9,187.89,13.60744548]
[1755481905684,0.74,187.9,187.88,13.60744548]
[1755481906056,6.06204595,187.9,187.86,13.60744548]
[1755481906260,0.7,187.89,187.84,13.60744548]
[1755481906476,14.30744548,187.89,187.83,13.60744548]
[1755481906669,14.30744548,187.88,187.82,13.60744548]
[1755481906891,14.30744548,187.87,187.82,13.60744548]
[1755481907060,0.7,187.86,187.81,13.60744548]
[1755481907386,0.7,187.85,187.83,13.60744548]
[1755481907955,0.7,187.84,187.83,13.60744548]
[1755481908462,0.7,187.87,187.83,13.60744548]
[1755481908676,0.7,187.86,187.83,13.60744548]
[1755481908988,0.7,187.85,187.84,13.60744548]
[1755481910288,0.06,187.89,187.84,13.60744548]
[1755481910474,0.06,187.89,187.86,13.60744548]
[1755481910794,0.7,187.88,187.85,13.60744548]
[1755481911010,0.7,187.87,187.85,13.60744548]
[1755481911377,0.7,187.87,187.79,40.44]
[1755481911593,0.7,187.86,187.85,13.60744548]
[1755481912869,5.38233801,187.89,187.85,13.60744548]
[1755481913076,0.7,187.88,187.86,13.60744548]
[1755481914576,0.06,187.89,187.84,5.32364968]
[1755481914894,0.76,187.89,187.86,13.60744548]
[1755481915096,0.76,187.89,187.82,31.32422567]
[1755481915097,0.76,187.89,187.87,13.60744548]
[1755481915482,0.7,187.88,187.87,13.60744548]
[1755481916391,0.7,187.88,187.86,13.60744548]
[1755481916787,0.7,187.87,187.86,13.60744548]
[1755481918194,0.76,187.89,187.86,13.60744548]
[1755481918396,0.06,187.89,187.87,13.60744548]
[1755481918599,0.06,187.89,187.86,13.60744548]
[1755481918901,0.7,187.88,187.86,13.60744548]
[1755481919237,0.06,187.89,187.87,13.60744548]
[1755481919390,0.06,187.89,187.88,13.60744548]
[1755481920586,0.06,187.89,187.88,18.92999178]
[1755481920892,0.06,187.92,187.91,26.0]
[1755481921102,0.06,187.94,187.92,15.10621557]
[1755481921323,0.03,187.97,187.95,26.0]
[1755481921628,0.03,187.97,187.96,15.10621557]
[1755481921799,0.03,187.97,187.96,69.11366105]
[1755481922295,0.03,187.97,187.96,59.32772639]
[1755481922786,0.03,187.97,187.96,39.60744548]
[1755481923119,0.73,187.97,187.93,26.0]
[1755481923279,0.73,187.97,187.96,13.60744548]
[1755481923478,0.03,187.97,187.95,13.60744548]
[1755481923710,0.03,187.97,187.94,13.60744548]
[1755481924017,0.7,187.96,187.92,40.38]
[1755481924217,0.7,187.95,187.94,13.60744548]
[1755481924519,0.03,187.97,187.94,13.60744548]
[1755481924815,0.03,187.97,187.96,13.60744548]
[1755481925184,0.73,187.97,187.95,13.60744548]
[1755481925418,0.7,187.96,187.95,13.60744548]
[1755481925583,0.7,187.96,187.94,13.60744548]
[1755481925784,0.7,187.95,187.92,40.38]
[1755481926004,0.03,187.97,187.94,13.60744548]
[1755481926204,0.7,187.96,187.94,13.60744548]
[1755481926445,6.02035469,187.96,187.93,13.60744548]
[1755481926649,0.7,187.95,187.93,13.60744548]
[1755481926852,0.7,187.95,187.91,26.0]
[1755481926853,0.7,187.95,187.89,40.36]
[1755481927132,0.7,187.94,187.93,13.60744548]
[1755481927643,0.7,187.94,187.89,45.68224257]
[1755481927805,5.32035469,187.96,187.89,45.68224257]
[1755481927806,5.32035469,187.96,187.89,40.36]
[1755481928001,0.7,187.95,187.89,45.68218592]
[1755481928231,0.7,187.95,187.89,45.68216988]
[1755481930157,6.02062773,187.95,187.89,40.36]
[1755481930438,0.7,187.95,187.89,45.68223675]
[1755481930611,6.02059159,187.95,187.89,40.36]
[1755481931404,0.7,187.95,187.89,40.36]
[1755481932827,0.7,187.95,187.89,45.68220864]
[1755481933566,6.02068956,187.95,187.84,5.32367972]
[1755481933716,14.30744548,187.94,187.89,13.60744548]
[1755481933919,0.7,187.93,187.89,13.60744548]
[1755481934118,0.7,187.92,187.89,13.60744548]
[1755481934423,0.7,187.91,187.89,13.60744548]
[1755481935145,0.67,187.9,187.88,13.60744548]
[1755481935324,0.67,187.9,187.89,13.60744548]
[1755481935529,0.67,187.9,187.85,71.66333796]
[1755481935734,5.99145919,187.92,187.89,13.60744548]
[1755481935933,0.67,187.91,187.89,13.60744548]
[1755481936260,0.67,187.91,187.85,71.66333796]
[1755481936549,13.60744548,187.89,187.83,13.60744548]
[1755481936769,0.67,187.88,187.83,13.60744548]
[1755481936951,0.67,187.88,187.85,13.60744548]
[1755481937251,0.67,187.87,187.84,13.60744548]
[1755481937453,0.67,187.86,187.82,13.60744548]
[1755481937656,0.67,187.85,187.81,13.60744548]
[1755481937855,0.67,187.84,187.81,13.60744548]
[1755481938024,0.67,187.84,187.82,13.60744548]
[1755481938224,0.67,187.83,187.82,13.60744548]
[1755481938440,0.67,187.83,187.81,0.03]
[1755481938646,0.67,187.82,187.81,0.03]
[1755481939568,14.27744548,187.82,187.81,0.03]
[1755481940054,0.67,187.82,187.81,0.03]
[1755481940659,5.99424661,187.82,187.81,0.03]
[1755481941659,26.67,187.85,187.81,13.63744548]
[1755481941974,31.99339802,187.85,187.83,13.60744548]
[1755481942194,5.32287565,187.87,187.84,13.60744548]
[1755481942332,0.67,187.88,187.86,13.60744548]
[1755481942333,5.99258653,187.88,187.86,13.60744548]
[1755481942633,5.99258653,187.88,187.87,13.60744548]
[1755481942836,0.67,187.88,187.87,13.60744548]
[1755481943142,5.32230162,187.89,187.87,13.60744548]
[1755481943339,5.99230162,187.89,187.88,13.60744548]
[1755481943534,5.99230162,187.89,187.87,13.60744548]
[1755481944065,28.41003033,187.92,187.87,13.60744548]
[1755481944066,0.67,187.88,187.87,13.60744548]
[1755481945331,5.99197977,187.9,187.87,13.60744548]
[1755481945531,0.67,187.89,187.85,13.60744548]
[1755481945759,15.10621557,187.88,187.81,0.03]
[1755481945975,0.67,187.87,187.81,13.63744548]
[1755481946176,45.62311295,187.86,187.83,13.60744548]
[1755481946338,40.3,187.86,187.84,13.60744548]
[1755481946530,40.97,187.86,187.84,13.60744548]
[1755481946732,40.97,187.86,187.83,13.60744548]
[1755481946931,40.97,187.86,187.85,13.60744548]
[1755481947161,40.97,187.86,187.81,0.03]
[1755481947337,40.3,187.86,187.85,13.60744548]
[1755481947662,66.97,187.89,187.85,13.60744548]
[1755481947846,0.67,187.88,187.85,13.60744548]
[1755481948345,0.67,187.88,187.86,13.60744548]
[1755481948548,5.32257816,187.88,187.85,13.60744548]
[1755481948775,0.67,187.87,187.85,13.60744548]
[1755481949066,5.32257816,187.88,187.85,13.60744548]
[1755481949258,0.67,187.86,187.85,13.60744548]
[1755481949426,0.67,187.86,187.81,0.03]
[1755481949634,13.60744548,187.85,187.81,0.03]
[1755481949860,54.57744548,187.84,187.81,0.03]
[1755481950075,5.99416658,187.83,187.81,0.03]
[1755481950262,13.60744548,187.82,187.81,0.03]
[1755481950572,13.60744548,187.82,187.79,0.03]
[1755481950573,15.10621557,187.81,187.79,0.03]
[1755481950756,53.88744548,187.8,187.79,0.03]
[1755481950941,54.55744548,187.8,187.79,0.03]
[1755481952047,69.66366105,187.8,187.79,0.03]
[1755481952248,74.98847468,187.8,187.79,0.03]
[1755481954489,40.28,187.8,187.79,0.03]
[1755481955451,46.27481363,187.8,187.79,0.03]
[1755481956154,15.10621557,187.79,187.77,0.03]
[1755481956354,39.60744548,187.78,187.77,0.03]
[1755481956572,39.60744548,187.78,187.75,0.03]
[1755481956573,26.0,187.76,187.75,0.03]
[1755481956776,66.28,187.76,187.75,0.03]
[1755481956960,82.05621557,187.76,187.75,0.03]
[1755481957443,87.38216358,187.76,187.75,0.03]
[1755481961751,146.807446,187.79,187.75,0.03]
[1755481961950,13.31006828,187.83,187.75,0.03]
[1755481962159,26.0,187.79,187.75,0.03]
[1755481962483,40.26,187.78,187.75,0.03]
[1755481962866,40.93,187.78,187.75,0.03]
[1755481963048,0.67,187.77,187.75,0.03]
[1755481963249,40.26,187.76,187.75,0.03]
[1755481963558,40.26,187.76,187.75,13.63744548]
[1755481964092,45.58594801,187.76,187.75,0.03]
[1755481964373,40.26,187.76,187.75,0.03]
[1755481964583,40.93,187.76,187.75,0.03]
[1755481964756,40.26,187.76,187.75,0.03]
[1755481964960,40.26,187.76,187.75,13.63744548]
[1755481965176,26.0,187.79,187.75,13.63744548]
[1755481965355,40.24,187.78,187.77,13.60744548]
[1755481965852,40.91,187.78,187.75,0.03]
[1755481966179,46.23538785,187.78,187.76,13.60744548]
[1755481966386,40.91,187.78,187.76,13.60744548]
[1755481966583,40.24,187.78,187.76,13.60744548]
[1755481966887,40.24,187.78,187.77,13.60744548]
[1755481967572,40.24,187.78,187.75,13.63744548]
[1755481967886,46.23557376,187.78,187.75,13.63744548]
[1755481968086,40.24,187.78,187.77,13.60744548]
[1755481968293,40.91,187.78,187.76,13.60744548]
[1755481968456,40.24,187.78,187.76,13.60744548]
[1755481969376,0.67,187.77,187.75,0.03]
[1755481969579,40.24,187.76,187.75,0.03]
[1755481969788,69.62366105,187.76,187.75,0.03]
[1755481969965,13.60744548,187.74,187.73,0.03]
[1755481970164,53.84744548,187.74,187.73,0.03]
[1755481970567,54.51744548,187.74,187.73,0.03]
[1755481971386,46.23651539,187.74,187.73,0.03]
[1755481971760,45.56651539,187.74,187.73,0.03]
[1755481972273,46.23651539,187.74,187.73,0.03]
[1755481974489,61.34273096,187.74,187.73,0.03]
[1755481974701,74.95017644,187.74,187.73,0.03]
[1755481975471,61.34273096,187.74,187.73,0.03]
[1755481975656,74.95017644,187.74,187.73,0.03]
[1755481978290,64.80664083,187.74,187.73,0.03]
[1755481978591,49.70042526,187.74,187.73,0.03]
[1755481978766,45.56651539,187.74,187.73,0.03]
[1755481978965,46.23651539,187.74,187.73,0.03]
[1755481979282,49.70045821,187.74,187.73,0.03]
[1755481979491,49.03045821,187.74,187.73,0.03]
[1755481979675,45.56651539,187.74,187.73,0.03]
[1755481979878,78.41313221,187.74,187.73,0.03]
[1755481980569,64.80568673,187.74,187.73,0.03]
[1755481980974,49.02947116,187.74,187.73,0.03]
[1755481981498,0.67,187.77,187.73,13.63744548]
[1755481981683,3.4674189,187.77,187.76,13.60744548]
[1755481982004,3.4674189,187.77,187.73,13.63744548]
[1755481982005,0.67,187.76,187.73,13.63744548]
[1755481982166,40.87,187.75,187.73,0.03]
[1755481982365,5.32619263,187.76,187.73,0.03]